Departmental Area,Entity,Payment Date,Expense type,Expense Area,Supplier Name,Payment Reference,      Invoice Distribution Amount      ,Description,Supplier Type,Expenditure Type
UK Statistics Family,Office for National Statistics,01/06/2023,PPE - NON-PROPERTY (LEASED NON-PFI) - COST - ADDITIONS (AS LESSEE),IT Operations,Crown Hosting Data Centres Limited,267976," 63,063.14 ",Information Management Services,SME,Programme Expenditure
UK Statistics Family,Office for National Statistics,01/06/2023,Telecoms,IT Operations,Crown Hosting Data Centres Limited,267976, 860.00 ,Information Management Services,SME,Programme Expenditure
UK Statistics Family,Office for National Statistics,01/06/2023,Hosting,IT Operations,Crown Hosting Data Centres Limited,267976," 39,165.34 ",Information Management Services,SME,Programme Expenditure
UK Statistics Family,Office for National Statistics,01/06/2023,EXP - PURCHASE OF GOODS/SERVICES -  NON IT CONTRACTUAL PAYMENTS,Divisional Management,Nla Media Access Limited,267977," 25,174.10 ",Media Services License,Large,Programme Expenditure
UK Statistics Family,Office for National Statistics,01/06/2023,Business Rates,Property Newport,Newport City Council,267978," 1,027,200.00 ",Business Property Rates,Large,Programme Expenditure
UK Statistics Family,Office for National Statistics,01/06/2023,Exp - Purchase Of Goods/Services - IT Contractual Services,Finance,Oracle Corporation UK Ltd,267979," 92,685.01 ",Software Support Services,Large,Programme Expenditure
UK Statistics Family,Office for National Statistics,01/06/2023,Exp - Short-Term Contract & Agency Staff - Full Cost,GSS Strategy Delivery,Concept Information Technology Ltd T/A Concept Resourcing,267982," 9,692.87 ",Information Management Services,Large,Programme Expenditure
UK Statistics Family,Office for National Statistics,01/06/2023,Exp - Short-Term Contract & Agency Staff - Full Cost,GSS Strategy Delivery,Concept Information Technology Ltd T/A Concept Resourcing,267982," 1,171.84 ",Information Management Services,Large,Programme Expenditure
UK Statistics Family,Office for National Statistics,01/06/2023,Exp - Short-Term Contract & Agency Staff - Full Cost,Business Change Support,Concept Information Technology Ltd T/A Concept Resourcing,267982," 3,792.73 ",Information Management Services,Large,Programme Expenditure
UK Statistics Family,Office for National Statistics,01/06/2023,Exp - Short-Term Contract & Agency Staff - Full Cost,Business Change Support,Concept Information Technology Ltd T/A Concept Resourcing,267982," 5,905.20 ",Information Management Services,Large,Programme Expenditure
UK Statistics Family,Office for National Statistics,01/06/2023,Exp - Short-Term Contract & Agency Staff - Full Cost,Business Change Support,Concept Information Technology Ltd T/A Concept Resourcing,267982," 22,610.46 ",Information Management Services,Large,Programme Expenditure
UK Statistics Family,Office for National Statistics,01/06/2023,Exp - Short-Term Contract & Agency Staff - Full Cost,Business Change Support,Concept Information Technology Ltd T/A Concept Resourcing,267982," 13,041.60 ",Information Management Services,Large,Programme Expenditure
UK Statistics Family,Office for National Statistics,01/06/2023,Exp - Short-Term Contract & Agency Staff - Full Cost,Business Change Support,Concept Information Technology Ltd T/A Concept Resourcing,267982," 3,782.71 ",Information Management Services,Large,Programme Expenditure
UK Statistics Family,Office for National Statistics,01/06/2023,Exp - Short-Term Contract & Agency Staff - Full Cost,Business Change Support,Concept Information Technology Ltd T/A Concept Resourcing,267982," 33,944.49 ",Information Management Services,Large,Programme Expenditure
UK Statistics Family,Office for National Statistics,01/06/2023,Exp - Short-Term Contract & Agency Staff - Full Cost,Business Change Support,Concept Information Technology Ltd T/A Concept Resourcing,267982," 3,785.30 ",Information Management Services,Large,Programme Expenditure
UK Statistics Family,Office for National Statistics,01/06/2023,Exp - Short-Term Contract & Agency Staff - Full Cost,Business Change Support,Concept Information Technology Ltd T/A Concept Resourcing,267982," 8,429.69 ",Information Management Services,Large,Programme Expenditure
UK Statistics Family,Office for National Statistics,01/06/2023,Exp - Short-Term Contract & Agency Staff - Full Cost,Sustainability And Inequalities,Concept Information Technology Ltd T/A Concept Resourcing,267982," 3,799.06 ",Information Management Services,Large,Programme Expenditure
UK Statistics Family,Office for National Statistics,01/06/2023,Exp - Short-Term Contract & Agency Staff - Full Cost,Productivity Research And Professional Development,Concept Information Technology Ltd T/A Concept Resourcing,267982," 4,828.37 ",Information Management Services,Large,Programme Expenditure
UK Statistics Family,Office for National Statistics,01/06/2023,Exp - Short-Term Contract & Agency Staff - Full Cost,Productivity Research And Professional Development,Concept Information Technology Ltd T/A Concept Resourcing,267982," 4,850.70 ",Information Management Services,Large,Programme Expenditure
UK Statistics Family,Office for National Statistics,01/06/2023,Exp - Short-Term Contract & Agency Staff - Full Cost,Business Architecture Transformation And Statistical Strategy,Concept Information Technology Ltd T/A Concept Resourcing,267982," 1,054.50 ",Information Management Services,Large,Programme Expenditure
UK Statistics Family,Office for National Statistics,01/06/2023,Exp - Short-Term Contract & Agency Staff - Full Cost,Business Architecture Transformation And Statistical Strategy,Concept Information Technology Ltd T/A Concept Resourcing,267982," 4,848.32 ",Information Management Services,Large,Programme Expenditure
UK Statistics Family,Office for National Statistics,01/06/2023,Exp - Short-Term Contract & Agency Staff - Full Cost,SUB-NATIONAL STATISTICS AND ANALYSIS,Concept Information Technology Ltd T/A Concept Resourcing,267982," 3,796.20 ",Information Management Services,Large,Programme Expenditure
UK Statistics Family,Office for National Statistics,01/06/2023,Exp - Short-Term Contract & Agency Staff - Full Cost,SUB-NATIONAL STATISTICS AND ANALYSIS,Concept Information Technology Ltd T/A Concept Resourcing,267982," 15,655.00 ",Information Management Services,Large,Programme Expenditure
UK Statistics Family,Office for National Statistics,01/06/2023,Exp - Short-Term Contract & Agency Staff - Full Cost,ANALYSIS FUNCTION STRATEGY AND DELIVERY,Concept Information Technology Ltd T/A Concept Resourcing,267982," 4,434.60 ",Information Management Services,Large,Programme Expenditure
UK Statistics Family,Office for National Statistics,01/06/2023,Exp - Short-Term Contract & Agency Staff - Full Cost,Ask Business Services,Concept Information Technology Ltd T/A Concept Resourcing,267982, 779.22 ,Information Management Services,Large,Programme Expenditure
UK Statistics Family,Office for National Statistics,01/06/2023,Exp - Short-Term Contract & Agency Staff - Full Cost,Recruitment ,Concept Information Technology Ltd T/A Concept Resourcing,267982," 3,369.61 ",Information Management Services,Large,Programme Expenditure
UK Statistics Family,Office for National Statistics,01/06/2023,Exp - Short-Term Contract & Agency Staff - Full Cost,REPROGRAPHICS,Concept Information Technology Ltd T/A Concept Resourcing,267982," 2,805.19 ",Information Management Services,Large,Programme Expenditure
UK Statistics Family,Office for National Statistics,01/06/2023,Exp - Short-Term Contract & Agency Staff - Full Cost,Best Practice And Impact,Concept Information Technology Ltd T/A Concept Resourcing,267982," 20,600.77 ",Information Management Services,Large,Programme Expenditure
UK Statistics Family,Office for National Statistics,01/06/2023,Exp - Short-Term Contract & Agency Staff - Full Cost,Crime Income And Wealth,Concept Information Technology Ltd T/A Concept Resourcing,267982," 1,294.26 ",Information Management Services,Large,Programme Expenditure
UK Statistics Family,Office for National Statistics,01/06/2023,Exp - Short-Term Contract & Agency Staff - Full Cost,Crime Income And Wealth,Concept Information Technology Ltd T/A Concept Resourcing,267982," 1,054.50 ",Information Management Services,Large,Programme Expenditure
UK Statistics Family,Office for National Statistics,01/06/2023,Exp - Purchase Of Goods/Services - Contractors,CDIO UNGP,Concept Information Technology Ltd T/A Concept Resourcing,267982," 16,391.90 ",Information Management Services,Large,Programme Expenditure
UK Statistics Family,Office for National Statistics,01/06/2023,Exp - Short-Term Contract & Agency Staff - Full Cost,Strategy And Architecture,Concept Information Technology Ltd T/A Concept Resourcing,267982," 3,465.17 ",Information Management Services,Large,Programme Expenditure
UK Statistics Family,Office for National Statistics,01/06/2023,Exp - Short-Term Contract & Agency Staff - Full Cost,Public Sector And Households,Concept Information Technology Ltd T/A Concept Resourcing,267982," 4,850.70 ",Information Management Services,Large,Programme Expenditure
UK Statistics Family,Office for National Statistics,01/06/2023,Exp - Short-Term Contract & Agency Staff - Full Cost,Public Sector And Households,Concept Information Technology Ltd T/A Concept Resourcing,267982," 8,625.45 ",Information Management Services,Large,Programme Expenditure
UK Statistics Family,Office for National Statistics,01/06/2023,Exp - Short-Term Contract & Agency Staff - Full Cost,Public Sector And Households,Concept Information Technology Ltd T/A Concept Resourcing,267982," 3,374.40 ",Information Management Services,Large,Programme Expenditure
UK Statistics Family,Office for National Statistics,01/06/2023,Exp - Short-Term Contract & Agency Staff - Full Cost,Public Sector And Households,Concept Information Technology Ltd T/A Concept Resourcing,267982," 3,375.58 ",Information Management Services,Large,Programme Expenditure
UK Statistics Family,Office for National Statistics,01/06/2023,Exp - Short-Term Contract & Agency Staff - Full Cost,Prices Division,Concept Information Technology Ltd T/A Concept Resourcing,267982," 3,792.73 ",Information Management Services,Large,Programme Expenditure
UK Statistics Family,Office for National Statistics,01/06/2023,Exp - Short-Term Contract & Agency Staff - Full Cost,Prices Division,Concept Information Technology Ltd T/A Concept Resourcing,267982," 2,093.18 ",Information Management Services,Large,Programme Expenditure
UK Statistics Family,Office for National Statistics,01/06/2023,Exp - Short-Term Contract & Agency Staff - Full Cost,Corporations,Concept Information Technology Ltd T/A Concept Resourcing,267982," 4,850.70 ",Information Management Services,Large,Programme Expenditure
UK Statistics Family,Office for National Statistics,01/06/2023,Exp - Short-Term Contract & Agency Staff - Full Cost,Corporations,Concept Information Technology Ltd T/A Concept Resourcing,267982," 12,423.16 ",Information Management Services,Large,Programme Expenditure
UK Statistics Family,Office for National Statistics,01/06/2023,Exp - Short-Term Contract & Agency Staff - Full Cost,Business Outputs And Developments,Concept Information Technology Ltd T/A Concept Resourcing,267982," 9,701.40 ",Information Management Services,Large,Programme Expenditure
UK Statistics Family,Office for National Statistics,01/06/2023,Exp - Short-Term Contract & Agency Staff - Full Cost,Business Outputs And Developments,Concept Information Technology Ltd T/A Concept Resourcing,267982," 3,788.12 ",Information Management Services,Large,Programme Expenditure
UK Statistics Family,Office for National Statistics,01/06/2023,Specialist User Software And Hardware,CLOUD ARCHITECTURE,Scc,267983," 510,099.41 ",Software Licenses,Large,Programme Expenditure
UK Statistics Family,Office for National Statistics,01/06/2023,End User Software And Hardware,IT Operations,Scc,267983," 188,275.24 ",Software Licenses,Large,Programme Expenditure
UK Statistics Family,Office for National Statistics,01/06/2023,Exp - Purchase Of Goods/Services - IT Contractual Services,IT Operations,Ibm United Kingdom Ltd,267989," 16,435.20 ",Information Management Services,Large,Programme Expenditure
UK Statistics Family,Office for National Statistics,01/06/2023,Exp - Purchase Of Goods/Services - IT Contractual Services,IT Operations,Ibm United Kingdom Ltd,267989," 43,660.80 ",Information Management Services,Large,Programme Expenditure
UK Statistics Family,Office for National Statistics,01/06/2023,Travel And Subsistence,Corporate Centre,Corporate Travel Management ,267990," 32,674.32 ",Travel and Accommodation,SME,Programme Expenditure
UK Statistics Family,Office for National Statistics,01/06/2023,"ICT Outsourcing, Maintenance And Support",IT Operations,ITS Computing Limited,267991," 48,400.00 ",Information Management Services,Large,Programme Expenditure
UK Statistics Family,Office for National Statistics,01/06/2023,Exp - Purchase Of Goods/Services - Contractors,Testing,Certes Computing Ltd,267997," 11,759.47 ",Information Management Services,SME,Programme Expenditure
UK Statistics Family,Office for National Statistics,01/06/2023,Exp - Purchase Of Goods/Services - Contractors,Programme Support,Certes Computing Ltd,267997," 13,650.00 ",Information Management Services,SME,Programme Expenditure
UK Statistics Family,Office for National Statistics,01/06/2023,Exp - Purchase Of Goods/Services - Contractors,Data Architecture,Certes Computing Ltd,267997," 14,994.61 ",Information Management Services,SME,Programme Expenditure
UK Statistics Family,Office for National Statistics,01/06/2023,Exp - Purchase Of Goods/Services - Contractors,Data Architecture,Certes Computing Ltd,267997," 16,524.65 ",Information Management Services,SME,Programme Expenditure
UK Statistics Family,Office for National Statistics,01/06/2023,Exp - Purchase Of Goods/Services - Contractors,CLOUD ARCHITECTURE,Certes Computing Ltd,267997," 17,604.65 ",Information Management Services,SME,Programme Expenditure
UK Statistics Family,Office for National Statistics,01/06/2023,Exp - Purchase Of Goods/Services - IT Contractual Services,CDIO UNGP,Certes Computing Ltd,267997," 14,280.00 ",Information Management Services,SME,Programme Expenditure
UK Statistics Family,Office for National Statistics,01/06/2023,Exp - Purchase Of Goods/Services - Contractors,Strategy And Architecture,Certes Computing Ltd,267997," 12,960.00 ",Information Management Services,SME,Programme Expenditure
UK Statistics Family,Office for National Statistics,01/06/2023,Exp - Purchase Of Goods/Services - Contractors,IT Applications,Certes Computing Ltd,267997," 27,683.43 ",Information Management Services,SME,Programme Expenditure
UK Statistics Family,Office for National Statistics,01/06/2023,Exp - Purchase Of Goods/Services - Contractors,Interviewer Management FiF,Certes Computing Ltd,267997," 15,300.00 ",Information Management Services,SME,Programme Expenditure
UK Statistics Family,Office for National Statistics,01/06/2023,Exp - Purchase Of Goods/Services - Contractors,Testing,La International,267998," 31,185.89 ",Information Management Services,SME,Programme Expenditure
UK Statistics Family,Office for National Statistics,01/06/2023,Exp - Purchase Of Goods/Services - Contractors,Testing,La International,267998," 3,184.94 ",Information Management Services,SME,Programme Expenditure
UK Statistics Family,Office for National Statistics,01/06/2023,Exp - Purchase Of Goods/Services - Contractors,Security And Information Management Saim,La International,267998," 11,400.00 ",Information Management Services,SME,Programme Expenditure
UK Statistics Family,Office for National Statistics,01/06/2023,Exp - Purchase Of Goods/Services - Contractors,Data Architecture,La International,267998," 37,309.36 ",Information Management Services,SME,Programme Expenditure
UK Statistics Family,Office for National Statistics,01/06/2023,Exp - Purchase Of Goods/Services - Contractors,Data Architecture,La International,267998," 5,137.41 ",Information Management Services,SME,Programme Expenditure
UK Statistics Family,Office for National Statistics,01/06/2023,Exp - Purchase Of Goods/Services - Contractors,IT Applications,La International,267998," 9,162.36 ",Information Management Services,SME,Programme Expenditure
UK Statistics Family,Office for National Statistics,01/06/2023,Exp - Purchase Of Goods/Services - Contractors,IT Applications,La International,267998," 11,911.06 ",Information Management Services,SME,Programme Expenditure
UK Statistics Family,Office for National Statistics,01/06/2023,Exp - Purchase Of Goods/Services - Contractors,IT Operations,La International,267998," 22,178.88 ",Information Management Services,SME,Programme Expenditure
UK Statistics Family,Office for National Statistics,01/06/2023,Exp - Purchase Of Goods And Services Consultants,Planning And Info Governance,Ernst & Young LLP,268001," 56,255.80 ",Consultancy,Large,Programme Expenditure
UK Statistics Family,Office for National Statistics,01/06/2023,Training & Development,Learning And Capability,Ernst & Young LLP,268001," 4,279.00 ",Training and Educational Services,Large,Programme Expenditure
UK Statistics Family,Office for National Statistics,01/06/2023,Exp - Purchase Of Goods/Services - Training & Development - Seminar & Conference Fees,Learning And Capability,Ernst & Young LLP,268001," 2,500.00 ",Training and Educational Services,Large,Programme Expenditure
UK Statistics Family,Office for National Statistics,01/06/2023,"ICT Outsourcing, Maintenance And Support",IT Operations,Proact IT UK Ltd.,268009," 26,319.60 ",Software Support Services,SME,Programme Expenditure
UK Statistics Family,Office for National Statistics,01/06/2023,"ICT Outsourcing, Maintenance And Support",IT Operations,Proact IT UK Ltd.,268009," 31,006.66 ",Software Support Services,SME,Programme Expenditure
UK Statistics Family,Office for National Statistics,01/06/2023,Print & Post,REPROGRAPHICS,APS Group,268010," 32,706.73 ",Stationery,Large,Programme Expenditure
UK Statistics Family,Office for National Statistics,01/06/2023,Print & Post,Survey Processing Centre,APS Group,268010," 8,700.00 ",Stationery,Large,Programme Expenditure
UK Statistics Family,Office for National Statistics,01/06/2023,EXP - PURCHASE OF GOODS/SERVICES - DATA ACQUISITION,Prices Division,UK Finance,268012," 25,698.00 ",Data Acquisition,SME,Programme Expenditure
UK Statistics Family,Office for National Statistics,01/06/2023,Exp - Short-Term Contract & Agency Staff - Full Cost,Census & Soc Methodology Dd,Malikshaw Interim & Executive,268013," 4,019.98 ",Information Management Services,SME,Programme Expenditure
UK Statistics Family,Office for National Statistics,01/06/2023,Exp - Purchase Of Goods/Services - Contractors,Data Architecture,Malikshaw Interim & Executive,268013," 25,488.00 ",Information Management Services,SME,Programme Expenditure
UK Statistics Family,Office for National Statistics,01/06/2023,Exp - Purchase Of Goods/Services - Contractors,CDIO UNGP,Malikshaw Interim & Executive,268013," 14,644.80 ",Information Management Services,SME,Programme Expenditure
UK Statistics Family,Office for National Statistics,01/06/2023,Exp - Short-Term Contract & Agency Staff - Full Cost,Strategy And Architecture,Malikshaw Interim & Executive,268013," 3,076.92 ",Information Management Services,SME,Programme Expenditure
UK Statistics Family,Office for National Statistics,01/06/2023,Exp - Purchase Of Goods/Services - Contractors,DATA ENGINEERING OPERATIONS AND DELIVERY,Malikshaw Interim & Executive,268013," 16,264.80 ",Information Management Services,SME,Programme Expenditure
UK Statistics Family,Office for National Statistics,01/06/2023,Exp - Purchase Of Goods/Services - Contractors,Consultancy Management,Malikshaw Interim & Executive,268014," 13,163.40 ",Information Management Services,SME,Programme Expenditure
UK Statistics Family,Office for National Statistics,01/06/2023,Exp - Purchase Of Goods/Services - Contractors,Business Architecture Transformation And Statistical Strategy,Malikshaw Interim & Executive,268014," 14,040.00 ",Information Management Services,SME,Programme Expenditure
UK Statistics Family,Office for National Statistics,01/06/2023,Exp - Short-Term Contract & Agency Staff - Full Cost,Migration Statistics,Malikshaw Interim & Executive,268014," 4,019.98 ",Information Management Services,SME,Programme Expenditure
UK Statistics Family,Office for National Statistics,01/06/2023,Exp - Short-Term Contract & Agency Staff - Full Cost,Finance,Malikshaw Interim & Executive,268014," 2,750.84 ",Information Management Services,SME,Programme Expenditure
UK Statistics Family,Office for National Statistics,01/06/2023,Exp - Purchase Of Goods/Services - Contractors,CDIO UNGP,Malikshaw Interim & Executive,268014," 14,040.00 ",Information Management Services,SME,Programme Expenditure
UK Statistics Family,Office for National Statistics,01/06/2023,Exp - Purchase Of Goods/Services - Contractor Travel,CDIO UNGP,Malikshaw Interim & Executive,268014, 450.90 ,Information Management Services,SME,Programme Expenditure
UK Statistics Family,Office for National Statistics,01/06/2023,Exp - Purchase Of Goods/Services - IT Contractual Services,PARTNERSHIP DEVELOPMENT,CTS (Cloud Technology Solutions Ltd),268016," 102,577.92 ",Information Management Services,Large,Programme Expenditure
UK Statistics Family,Office for National Statistics,01/06/2023,Hosting,CLOUD ARCHITECTURE,CTS (Cloud Technology Solutions Ltd),268016," 189,001.88 ",Information Management Services,Large,Programme Expenditure
UK Statistics Family,Office for National Statistics,01/06/2023,Exp - Purchase Of Goods/Services - IT Contractual Services,CDIO UNGP,CTS (Cloud Technology Solutions Ltd),268016," 239,767.20 ",Information Management Services,Large,Programme Expenditure
UK Statistics Family,Office for National Statistics,01/06/2023,Exp - Purchase Of Goods/Services - IT Contractual Services,DATA ENGINEERING OPERATIONS AND DELIVERY,CTS (Cloud Technology Solutions Ltd),268016," 36,842.40 ",Information Management Services,Large,Programme Expenditure
UK Statistics Family,Office for National Statistics,01/06/2023,EXP - PURCHASE OF GOODS/SERVICES - DATA ACQUISITION,Prices Division,Kantar Public UK Ltd.,268019," 27,720.00 ",Statistical Services,SME,Programme Expenditure
UK Statistics Family,Office for National Statistics,01/06/2023,Hosting,CLOUD ARCHITECTURE,Amazon Web Services Inc,268022," 277,082.36 ",Information Management Services,Large,Programme Expenditure
UK Statistics Family,Office for National Statistics,01/06/2023,Exp - Purchase Of Goods/Services - IT Contractual Services,CDIO UNGP,Methods Business & Digital Technology Ltd,268024," 17,940.00 ",Information Management Services,Large,Programme Expenditure
UK Statistics Family,Office for National Statistics,01/06/2023,Exp - Purchase Of Goods/Services - IT Contractual Services,Digital Delivery,Methods Business & Digital Technology Ltd,268024," 58,695.00 ",Information Management Services,Large,Programme Expenditure
UK Statistics Family,Office for National Statistics,01/06/2023,Exp - Purchase Of Goods/Services - IT Contractual Services,IT Applications,Diegesis Limited,268025," 193,800.60 ",Information Management Services,Large,Programme Expenditure
UK Statistics Family,Office for National Statistics,01/06/2023,Exp - Purchase Of Goods/Services - Incentive Payments,Covid Infection Survey,Sodexo Motivation Solutions U.K. ltd,268026," 103,526.29 ",Survey Response Incentive Vouchers,Large,Programme Expenditure
UK Statistics Family,Office for National Statistics,01/06/2023,Exp - Purchase Of Goods/Services - Incentive Payments,Interviewer Support,Sodexo Motivation Solutions U.K. ltd,268026," 4,892.92 ",Survey Response Incentive Vouchers,Large,Programme Expenditure
UK Statistics Family,Office for National Statistics,01/06/2023,Exp - Purchase Of Goods/Services - Incentive Payments,Interviewer Support,Sodexo Motivation Solutions U.K. ltd,268026," 4,508.62 ",Survey Response Incentive Vouchers,Large,Programme Expenditure
UK Statistics Family,Office for National Statistics,01/06/2023,Exp - Purchase Of Goods/Services - Incentive Payments,Interviewer Support,Sodexo Motivation Solutions U.K. ltd,268026, 381.16 ,Survey Response Incentive Vouchers,Large,Programme Expenditure
UK Statistics Family,Office for National Statistics,01/06/2023,Exp - Purchase Of Goods/Services - Incentive Payments,Interviewer Support,Sodexo Motivation Solutions U.K. ltd,268026," 79,735.38 ",Survey Response Incentive Vouchers,Large,Programme Expenditure
UK Statistics Family,Office for National Statistics,01/06/2023,Exp - Purchase Of Goods/Services - Incentive Payments,Interviewer Support,Sodexo Motivation Solutions U.K. ltd,268026," 2,167.02 ",Survey Response Incentive Vouchers,Large,Programme Expenditure
UK Statistics Family,Office for National Statistics,01/06/2023,Exp - Purchase Of Goods/Services - Incentive Payments,Interviewer Support,Sodexo Motivation Solutions U.K. ltd,268026," 5,590.53 ",Survey Response Incentive Vouchers,Large,Programme Expenditure
UK Statistics Family,Office for National Statistics,01/06/2023,Exp - Purchase Of Goods/Services - Incentive Payments,Interviewer Support,Sodexo Motivation Solutions U.K. ltd,268026," 12,848.78 ",Survey Response Incentive Vouchers,Large,Programme Expenditure
UK Statistics Family,Office for National Statistics,01/06/2023,Exp - Purchase Of Goods/Services - Incentive Payments,Survey Management,Sodexo Motivation Solutions U.K. ltd,268026, 318.59 ,Survey Response Incentive Vouchers,Large,Programme Expenditure
UK Statistics Family,Office for National Statistics,01/06/2023,Exp - Purchase Of Goods/Services - Incentive Payments,Social Surveys Division,Sodexo Motivation Solutions U.K. ltd,268026, 222.06 ,Survey Response Incentive Vouchers,Large,Programme Expenditure
UK Statistics Family,Office for National Statistics,01/06/2023,Exp - Seconded UK Staff - Basic Salary,Epidemiology and Global Health Analysis,"Foreign, Commonwealth & Development Office",268030, 448.69 ,Seconded Staff,Large,Programme Expenditure
UK Statistics Family,Office for National Statistics,01/06/2023,EXP - PURCHASE OF GOODS/SERVICES -  NON IT CONTRACTUAL PAYMENTS,Overseas Development,"Foreign, Commonwealth & Development Office",268030," 199,889.05 ",FCDO Platform Charges,Large,Programme Expenditure
UK Statistics Family,Office for National Statistics,01/06/2023,Exp - Seconded UK Staff - Basic Salary,Overseas Development,"Foreign, Commonwealth & Development Office",268030," 7,915.55 ",Seconded Staff,Large,Programme Expenditure
UK Statistics Family,Office for National Statistics,01/06/2023,Other Goods And Services,Interviewer Support,Banner Group Ltd,268031," 75,000.00 ",Postage,SME,Programme Expenditure
UK Statistics Family,Office for National Statistics,01/06/2023,"ICT Outsourcing, Maintenance And Support",Researcher Support And Data Access ,Equiniti-TopLevel,268032," 38,880.00 ",Information Management Services,SME,Programme Expenditure
UK Statistics Family,Office for National Statistics,01/06/2023,"ICT Outsourcing, Maintenance And Support",IT Operations,Equiniti-TopLevel,268032," 5,212.32 ",Information Management Services,SME,Programme Expenditure
UK Statistics Family,Office for National Statistics,01/06/2023,Exp - Purchase Of Goods And Services Consultants,Analysis Microdata And Engagement,Parity Resources Limited,268033," 9,088.09 ",Information Management Services,Large,Programme Expenditure
UK Statistics Family,Office for National Statistics,01/06/2023,Exp - Short-Term Contract & Agency Staff - Full Cost,Finance,Parity Resources Limited,268033," 2,415.36 ",Information Management Services,Large,Programme Expenditure
UK Statistics Family,Office for National Statistics,01/06/2023,Exp - Purchase Of Goods/Services - Contractors,BUSINESS STRATEGY PERFORMANCE AND PMO,Parity Resources Limited,268033," 8,160.00 ",Information Management Services,Large,Programme Expenditure
UK Statistics Family,Office for National Statistics,01/06/2023,Exp - Purchase Of Goods/Services - Contractors,Data Architecture,Parity Resources Limited,268033," 4,810.50 ",Information Management Services,Large,Programme Expenditure
UK Statistics Family,Office for National Statistics,01/06/2023,Exp - Purchase Of Goods/Services - Contractors,CDIO UNGP,Parity Resources Limited,268033," 21,162.30 ",Information Management Services,Large,Programme Expenditure
UK Statistics Family,Office for National Statistics,01/06/2023,Exp - Purchase Of Goods/Services - Contractors,Strategy And Architecture,Parity Resources Limited,268033," 18,947.26 ",Information Management Services,Large,Programme Expenditure
UK Statistics Family,Office for National Statistics,01/06/2023,Exp - Purchase Of Goods/Services - Contractors,Strategy And Architecture,Parity Resources Limited,268033," 15,157.80 ",Information Management Services,Large,Programme Expenditure
UK Statistics Family,Office for National Statistics,01/06/2023,Exp - Purchase Of Goods/Services - Contractors,IT Applications,Parity Resources Limited,268033," 17,940.00 ",Information Management Services,Large,Programme Expenditure
UK Statistics Family,Office for National Statistics,01/06/2023,Exp - Purchase Of Goods/Services - Contractors,IT Operations,Parity Resources Limited,268033," 32,021.40 ",Information Management Services,Large,Programme Expenditure
UK Statistics Family,Office for National Statistics,01/06/2023,Exp - Short-Term Contract & Agency Staff - Full Cost,Interviewer Management FiF,Parity Resources Limited,268033," 1,594.68 ",Information Management Services,Large,Programme Expenditure
UK Statistics Family,Office for National Statistics,01/06/2023,Exp - Short-Term Contract & Agency Staff - Full Cost,Interviewer Management FiF,Parity Resources Limited,268033," 18,048.10 ",Information Management Services,Large,Programme Expenditure
UK Statistics Family,Office for National Statistics,01/06/2023,Exp - Purchase Of Goods/Services - Census Field Costs,Interviewer Management FiF,Parity Resources Limited,268033, 503.11 ,Information Management Services,Large,Programme Expenditure
UK Statistics Family,Office for National Statistics,01/06/2023,Exp - Purchase Of Goods/Services - Census Field Costs,Interviewer Management FiF,Parity Resources Limited,268033, 299.70 ,Information Management Services,Large,Programme Expenditure
UK Statistics Family,Office for National Statistics,01/06/2023,Marketing & Media,Policy Secretariat,Cabinet Office,268034," 3,558.00 ",Recruitment Services,Large,Programme Expenditure
UK Statistics Family,Office for National Statistics,01/06/2023,EXP - PURCHASE OF GOODS/SERVICES -  NON IT CONTRACTUAL PAYMENTS,Security And Information Management Saim,Cabinet Office,268034," 105,600.00 ",Security Centre Costs,Large,Programme Expenditure
UK Statistics Family,Office for National Statistics,01/06/2023,Exp - Purchase Of Goods And Services Consultants,INTEGRATED DATA STRATEGY AND DELIVERY,Cabinet Office,268034," 46,770.00 ",Consultancy,Large,Programme Expenditure
UK Statistics Family,Office for National Statistics,01/06/2023,Exp - Purchase Of Goods/Services - Contractors,ECONOMIC CHANGE,Talent International,268039," 9,720.00 ",Information Management Services,SME,Programme Expenditure
UK Statistics Family,Office for National Statistics,01/06/2023,Exp - Short-Term Contract & Agency Staff - Full Cost,REPROGRAPHICS,Talent International,268039," 3,083.14 ",Information Management Services,SME,Programme Expenditure
UK Statistics Family,Office for National Statistics,01/06/2023,Exp - Short-Term Contract & Agency Staff - Full Cost,Census & Soc Methodology Dd,Talent International,268039," 3,988.01 ",Information Management Services,SME,Programme Expenditure
UK Statistics Family,Office for National Statistics,01/06/2023,Exp - Purchase Of Goods/Services - Contractors,Tech Delivery Legacy Sp,Talent International,268039," 15,340.80 ",Information Management Services,SME,Programme Expenditure
UK Statistics Family,Office for National Statistics,01/06/2023,Exp - Purchase Of Goods/Services - Contractors,IT Applications,Talent International,268039," 12,938.40 ",Information Management Services,SME,Programme Expenditure
UK Statistics Family,Office for National Statistics,01/06/2023,Exp - Purchase Of Goods/Services - Contractors,IT Operations,Talent International,268039," 15,299.80 ",Information Management Services,SME,Programme Expenditure
UK Statistics Family,Office for National Statistics,01/06/2023,Exp - Purchase Of Goods/Services - Contractors,Data Science Campus,Talent International,268039," 14,580.00 ",Information Management Services,SME,Programme Expenditure
UK Statistics Family,Office for National Statistics,01/06/2023,Exp - Purchase Of Goods And Services Consultants,INTEGRATED DATA STRATEGY AND DELIVERY,Deloitte,268047," 301,392.00 ",Consultancy,Large,Programme Expenditure
UK Statistics Family,Office for National Statistics,01/06/2023,Prepayments - Titchfield Postage Meter,Postage,Pitney Bowes Ltd,268048," 9,383.62 ",Postage,Large,Programme Expenditure
UK Statistics Family,Office for National Statistics,01/06/2023,Prepayments - Newport Postage Meter,Postage,Pitney Bowes Ltd,268048, 127.88 ,Postage,Large,Programme Expenditure
UK Statistics Family,Office for National Statistics,01/06/2023,Postage,REPROGRAPHICS,Pitney Bowes Ltd,268048," 168,709.78 ",Postage,Large,Programme Expenditure
UK Statistics Family,Office for National Statistics,01/06/2023,Exp - Purchase Of Goods/Services - IT Contractual Services,Digital Delivery,ANDigital Limited,268052," 119,304.00 ",Information Management Services,large,Programme Expenditure
UK Statistics Family,Office for National Statistics,02/06/2023,Exp - Short-Term Contract & Agency Staff - Full Cost,Business Change Support,Concept Information Technology Ltd T/A Concept Resourcing,268221," 2,803.32 ",Information Management Services,Large,Programme Expenditure
UK Statistics Family,Office for National Statistics,02/06/2023,Exp - Short-Term Contract & Agency Staff - Full Cost,Business Change Support,Concept Information Technology Ltd T/A Concept Resourcing,268221," 3,568.20 ",Information Management Services,Large,Programme Expenditure
UK Statistics Family,Office for National Statistics,02/06/2023,Exp - Short-Term Contract & Agency Staff - Full Cost,Business Change Support,Concept Information Technology Ltd T/A Concept Resourcing,268221," 9,157.22 ",Information Management Services,Large,Programme Expenditure
UK Statistics Family,Office for National Statistics,02/06/2023,Exp - Short-Term Contract & Agency Staff - Full Cost,Business Change Support,Concept Information Technology Ltd T/A Concept Resourcing,268221," 11,388.60 ",Information Management Services,Large,Programme Expenditure
UK Statistics Family,Office for National Statistics,02/06/2023,Exp - Short-Term Contract & Agency Staff - Full Cost,Business Change Support,Concept Information Technology Ltd T/A Concept Resourcing,268221," 2,314.19 ",Information Management Services,Large,Programme Expenditure
UK Statistics Family,Office for National Statistics,02/06/2023,Exp - Short-Term Contract & Agency Staff - Full Cost,Business Change Support,Concept Information Technology Ltd T/A Concept Resourcing,268221," 21,992.39 ",Information Management Services,Large,Programme Expenditure
UK Statistics Family,Office for National Statistics,02/06/2023,Exp - Short-Term Contract & Agency Staff - Full Cost,Business Change Support,Concept Information Technology Ltd T/A Concept Resourcing,268221, 989.41 ,Information Management Services,Large,Programme Expenditure
UK Statistics Family,Office for National Statistics,02/06/2023,Exp - Short-Term Contract & Agency Staff - Full Cost,Business Change Support,Concept Information Technology Ltd T/A Concept Resourcing,268221," 5,115.41 ",Information Management Services,Large,Programme Expenditure
UK Statistics Family,Office for National Statistics,02/06/2023,Exp - Short-Term Contract & Agency Staff - Full Cost,SUB-NATIONAL STATISTICS AND ANALYSIS,Concept Information Technology Ltd T/A Concept Resourcing,268221," 1,687.20 ",Information Management Services,Large,Programme Expenditure
UK Statistics Family,Office for National Statistics,02/06/2023,Exp - Short-Term Contract & Agency Staff - Full Cost,Recruitment ,Concept Information Technology Ltd T/A Concept Resourcing,268221, 568.62 ,Information Management Services,Large,Programme Expenditure
UK Statistics Family,Office for National Statistics,02/06/2023,Exp - Short-Term Contract & Agency Staff - Full Cost,Business Outputs And Developments,Concept Information Technology Ltd T/A Concept Resourcing,268221," 6,748.80 ",Information Management Services,Large,Programme Expenditure
UK Statistics Family,Office for National Statistics,02/06/2023,Exp - Short-Term Contract & Agency Staff - Full Cost,Business Outputs And Developments,Concept Information Technology Ltd T/A Concept Resourcing,268221," 2,565.00 ",Information Management Services,Large,Programme Expenditure
UK Statistics Family,Office for National Statistics,02/06/2023,Postage,Survey Processing Centre,DHL Parcel Ltd,268222," 29,374.43 ",Postage,Large,Programme Expenditure
UK Statistics Family,Office for National Statistics,02/06/2023,EXP - PURCHASE OF GOODS/SERVICES -  NON IT CONTRACTUAL PAYMENTS,Crime Statistics,Edinburgh Innovations,268235," 53,194.80 ",Development and Feasibility Services,SME,Programme Expenditure
UK Statistics Family,Office for National Statistics,02/06/2023,EXP - PURCHASE OF GOODS/SERVICES - DATA ACQUISITION,Analysis Microdata And Engagement,VISA EUROPE LIMITED,268236," 28,800.00 ",Data Acquisition,Large,Programme Expenditure
UK Statistics Family,Office for National Statistics,05/06/2023,Hosting,IT Operations,ITS Computing Limited,268319," 48,400.00 ",Information Management Services,Large,Programme Expenditure
UK Statistics Family,Office for National Statistics,05/06/2023,End User Software And Hardware,IT Operations,Somerford Associates,268322," 450,961.72 ",Software Licenses,Large,Programme Expenditure
UK Statistics Family,Office for National Statistics,05/06/2023,Exp - Purchase Of Goods/Services - Incentive Payments,Interviewer Support,Sodexo Motivation Solutions U.K. ltd,268325, 606.94 ,Survey Response Incentive Vouchers,Large,Programme Expenditure
UK Statistics Family,Office for National Statistics,05/06/2023,Exp - Purchase Of Goods/Services - Incentive Payments,Interviewer Support,Sodexo Motivation Solutions U.K. ltd,268325, 281.27 ,Survey Response Incentive Vouchers,Large,Programme Expenditure
UK Statistics Family,Office for National Statistics,05/06/2023,Exp - Purchase Of Goods/Services - Incentive Payments,Interviewer Support,Sodexo Motivation Solutions U.K. ltd,268325," 29,898.05 ",Survey Response Incentive Vouchers,Large,Programme Expenditure
UK Statistics Family,Office for National Statistics,05/06/2023,Exp - Purchase Of Goods/Services - Incentive Payments,Interviewer Support,Sodexo Motivation Solutions U.K. ltd,268325," 12,089.53 ",Survey Response Incentive Vouchers,Large,Programme Expenditure
UK Statistics Family,Office for National Statistics,05/06/2023,Exp - Purchase Of Goods/Services - Contractors,INTEGRATED DATA STRATEGY AND DELIVERY,LA FOSSE ASSOCIATES LIMITED,268326," 25,560.00 ",Information Management Services,Large,Programme Expenditure
UK Statistics Family,Office for National Statistics,05/06/2023,Exp - Purchase Of Goods/Services - Contractors,Data Architecture,LA FOSSE ASSOCIATES LIMITED,268326," 12,960.00 ",Information Management Services,Large,Programme Expenditure
UK Statistics Family,Office for National Statistics,05/06/2023,Exp - Permanent UK Staff - PRP Voucher Payments,ONS Corporate Funds,Edenred (UK Group) Limited,268328," 49,300.00 ",Performance Reward Vouchers,Large,Programme Expenditure
UK Statistics Family,Office for National Statistics,06/06/2023,Specialist User Software And Hardware,CLOUD ARCHITECTURE,Scc,268607," 70,353.07 ",Software Licenses,Large,Programme Expenditure
UK Statistics Family,Office for National Statistics,06/06/2023,"ICT Outsourcing, Maintenance And Support",IT Operations,Scc,268607," 44,279.37 ",Hardware Disposal,Large,Programme Expenditure
UK Statistics Family,Office for National Statistics,06/06/2023,Exp - Purchase Of Goods And Services Consultants,Digital Media,Methods Business & Digital Technology Ltd,268617," 30,963.00 ",Information Management Services,Large,Programme Expenditure
UK Statistics Family,Office for National Statistics,06/06/2023,Exp - Short-Term Contract & Agency Staff - Full Cost,Finance,Parity Resources Limited,268622," 1,509.60 ",Information Management Services,Large,Programme Expenditure
UK Statistics Family,Office for National Statistics,06/06/2023,Exp - Purchase Of Goods/Services - Contractors,BUSINESS STRATEGY PERFORMANCE AND PMO,Parity Resources Limited,268622," 11,220.00 ",Information Management Services,Large,Programme Expenditure
UK Statistics Family,Office for National Statistics,06/06/2023,Exp - Short-Term Contract & Agency Staff - Full Cost,Interviewer Management FiF,Parity Resources Limited,268622," 13,154.65 ",Information Management Services,Large,Programme Expenditure
UK Statistics Family,Office for National Statistics,06/06/2023,Exp - Purchase Of Goods/Services - Census Field Costs,Interviewer Management FiF,Parity Resources Limited,268622, 208.37 ,Information Management Services,Large,Programme Expenditure
UK Statistics Family,Office for National Statistics,06/06/2023,Exp - Purchase Of Goods/Services - Census Field Costs,Interviewer Management FiF,Parity Resources Limited,268622, 173.34 ,Information Management Services,Large,Programme Expenditure
UK Statistics Family,Office for National Statistics,06/06/2023,Exp - Short-Term Contract & Agency Staff - Full Cost,Interviewer Support,Parity Resources Limited,268622, 586.50 ,Information Management Services,Large,Programme Expenditure
UK Statistics Family,Office for National Statistics,06/06/2023,Exp - Purchase Of Goods/Services - Contractors,ECONOMIC CHANGE,Talent International,268624," 9,180.00 ",Information Management Services,SME,Programme Expenditure
UK Statistics Family,Office for National Statistics,06/06/2023,Exp - Short-Term Contract & Agency Staff - Full Cost,Finance,Talent International,268624," 2,955.44 ",Information Management Services,SME,Programme Expenditure
UK Statistics Family,Office for National Statistics,06/06/2023,Exp - Short-Term Contract & Agency Staff - Full Cost,Recruitment ,Talent International,268624," 2,587.33 ",Information Management Services,SME,Programme Expenditure
UK Statistics Family,Office for National Statistics,06/06/2023,Exp - Short-Term Contract & Agency Staff - Full Cost,Census & Soc Methodology Dd,Talent International,268624," 3,988.01 ",Information Management Services,SME,Programme Expenditure
UK Statistics Family,Office for National Statistics,06/06/2023,Exp - Purchase Of Goods/Services - Contractors,Tech Delivery Legacy Sp,Talent International,268624," 17,258.40 ",Information Management Services,SME,Programme Expenditure
UK Statistics Family,Office for National Statistics,06/06/2023,Exp - Purchase Of Goods/Services - Contractors,IT Applications,Talent International,268624," 12,938.40 ",Information Management Services,SME,Programme Expenditure
UK Statistics Family,Office for National Statistics,06/06/2023,Exp - Purchase Of Goods/Services - Contractors,DATA ENGINEERING OPERATIONS AND DELIVERY,Talent International,268624," 11,340.00 ",Information Management Services,SME,Programme Expenditure
UK Statistics Family,Office for National Statistics,07/06/2023,Exp - Purchase Of Goods/Services - IT Contractual Services,Finance,Oracle Corporation UK Ltd,268760," 122,269.43 ",Software Maintenance and Support,Large,Programme Expenditure
UK Statistics Family,Office for National Statistics,07/06/2023,Exp - Short-Term Contract & Agency Staff - Full Cost,GSS Strategy Delivery,Concept Information Technology Ltd T/A Concept Resourcing,268762," 6,526.52 ",Information Management Services,Large,Programme Expenditure
UK Statistics Family,Office for National Statistics,07/06/2023,Exp - Short-Term Contract & Agency Staff - Full Cost,Business Change Support,Concept Information Technology Ltd T/A Concept Resourcing,268762," 2,803.32 ",Information Management Services,Large,Programme Expenditure
UK Statistics Family,Office for National Statistics,07/06/2023,Exp - Short-Term Contract & Agency Staff - Full Cost,Business Change Support,Concept Information Technology Ltd T/A Concept Resourcing,268762," 3,585.30 ",Information Management Services,Large,Programme Expenditure
UK Statistics Family,Office for National Statistics,07/06/2023,Exp - Short-Term Contract & Agency Staff - Full Cost,Productivity Research And Professional Development,Concept Information Technology Ltd T/A Concept Resourcing,268762," 3,804.74 ",Information Management Services,Large,Programme Expenditure
UK Statistics Family,Office for National Statistics,07/06/2023,Exp - Short-Term Contract & Agency Staff - Full Cost,Productivity Research And Professional Development,Concept Information Technology Ltd T/A Concept Resourcing,268762," 3,796.20 ",Information Management Services,Large,Programme Expenditure
UK Statistics Family,Office for National Statistics,07/06/2023,Exp - Short-Term Contract & Agency Staff - Full Cost,Business Architecture Transformation And Statistical Strategy,Concept Information Technology Ltd T/A Concept Resourcing,268762," 3,796.20 ",Information Management Services,Large,Programme Expenditure
UK Statistics Family,Office for National Statistics,07/06/2023,Exp - Short-Term Contract & Agency Staff - Full Cost,SUB-NATIONAL STATISTICS AND ANALYSIS,Concept Information Technology Ltd T/A Concept Resourcing,268762," 3,796.20 ",Information Management Services,Large,Programme Expenditure
UK Statistics Family,Office for National Statistics,07/06/2023,Exp - Short-Term Contract & Agency Staff - Full Cost,ANALYSIS FUNCTION STRATEGY AND DELIVERY,Concept Information Technology Ltd T/A Concept Resourcing,268762," 2,741.70 ",Information Management Services,Large,Programme Expenditure
UK Statistics Family,Office for National Statistics,07/06/2023,Exp - Short-Term Contract & Agency Staff - Full Cost,REPROGRAPHICS,Concept Information Technology Ltd T/A Concept Resourcing,268762," 1,886.98 ",Information Management Services,Large,Programme Expenditure
UK Statistics Family,Office for National Statistics,07/06/2023,Exp - Short-Term Contract & Agency Staff - Full Cost,REPROGRAPHICS,Concept Information Technology Ltd T/A Concept Resourcing,268762," 2,649.35 ",Information Management Services,Large,Programme Expenditure
UK Statistics Family,Office for National Statistics,07/06/2023,Exp - Short-Term Contract & Agency Staff - Full Cost,Best Practice And Impact,Concept Information Technology Ltd T/A Concept Resourcing,268762," 6,110.41 ",Information Management Services,Large,Programme Expenditure
UK Statistics Family,Office for National Statistics,07/06/2023,Exp - Purchase Of Goods/Services - Contractors,CDIO UNGP,Concept Information Technology Ltd T/A Concept Resourcing,268762," 12,681.79 ",Information Management Services,Large,Programme Expenditure
UK Statistics Family,Office for National Statistics,07/06/2023,Exp - Short-Term Contract & Agency Staff - Full Cost,Strategy And Architecture,Concept Information Technology Ltd T/A Concept Resourcing,268762," 2,139.28 ",Information Management Services,Large,Programme Expenditure
UK Statistics Family,Office for National Statistics,07/06/2023,Exp - Purchase Of Goods/Services - IT Contractual Services,IT Operations,Ibm United Kingdom Ltd,268763," 25,165.92 ",Information Management Services,Large,Programme Expenditure
UK Statistics Family,Office for National Statistics,07/06/2023,Exp - Purchase Of Goods/Services - Contractors,Data Architecture,Certes Computing Ltd,268767," 26,040.72 ",Information Management Services,SME,Programme Expenditure
UK Statistics Family,Office for National Statistics,07/06/2023,Exp - Purchase Of Goods/Services - Contractors,IT Applications,Certes Computing Ltd,268767," 28,541.46 ",Information Management Services,SME,Programme Expenditure
UK Statistics Family,Office for National Statistics,07/06/2023,Exp - Purchase Of Goods/Services - Contractors,Digital Delivery,Certes Computing Ltd,268767," 15,750.00 ",Information Management Services,SME,Programme Expenditure
UK Statistics Family,Office for National Statistics,07/06/2023,Exp - Purchase Of Goods/Services - Contractors,DATA ENGINEERING OPERATIONS AND DELIVERY,Certes Computing Ltd,268767," 15,679.44 ",Information Management Services,SME,Programme Expenditure
UK Statistics Family,Office for National Statistics,07/06/2023,Exp - Purchase Of Goods/Services - Contractors,Interviewer Management FiF,Certes Computing Ltd,268767, 37.80 ,Information Management Services,SME,Programme Expenditure
UK Statistics Family,Office for National Statistics,07/06/2023,Exp - Purchase Of Goods/Services - Contractors,Testing,La International,268768," 21,606.83 ",Information Management Services,SME,Programme Expenditure
UK Statistics Family,Office for National Statistics,07/06/2023,Exp - Purchase Of Goods/Services - Contractors,Testing,La International,268768," 6,369.89 ",Information Management Services,SME,Programme Expenditure
UK Statistics Family,Office for National Statistics,07/06/2023,Exp - Purchase Of Goods/Services - Contractors,Data Architecture,La International,268768," 18,374.90 ",Information Management Services,SME,Programme Expenditure
UK Statistics Family,Office for National Statistics,07/06/2023,Exp - Purchase Of Goods/Services - Contractors,IT Applications,La International,268768," 4,581.18 ",Information Management Services,SME,Programme Expenditure
UK Statistics Family,Office for National Statistics,07/06/2023,Exp - Purchase Of Goods/Services - Contractors,IT Operations,La International,268768," 22,178.88 ",Information Management Services,SME,Programme Expenditure
UK Statistics Family,Office for National Statistics,07/06/2023,Other Goods And Services,Productivity Research And Professional Development,The Alan Turing Institute,268773," 65,818.50 ",Joint Project Funding,SME,Programme Expenditure
UK Statistics Family,Office for National Statistics,07/06/2023,Exp - Purchase Of Goods/Services - Contractors,Data Architecture,SmartSourcing Ltd,268778," 51,099.46 ",Information Management Services,SME,Programme Expenditure
UK Statistics Family,Office for National Statistics,07/06/2023,Exp - Purchase Of Goods/Services - Contractors,IT Operations,Talent International,268782," 16,199.78 ",Information Management Services,SME,Programme Expenditure
UK Statistics Family,Office for National Statistics,07/06/2023,Exp - Purchase Of Goods/Services - Contractors,Data Science Campus,Talent International,268782," 14,580.00 ",Information Management Services,SME,Programme Expenditure
UK Statistics Family,Office for National Statistics,07/06/2023,Exp - Purchase Of Goods/Services - IT Contractual Services,Digital Delivery,ANDigital Limited,268788," 167,784.00 ",Information Management Services,large,Programme Expenditure
UK Statistics Family,Office for National Statistics,08/06/2023,Exp - Purchase Of Goods/Services - Contractors,Consultancy Management,Malikshaw Interim & Executive,268917," 14,832.00 ",Information Management Services,SME,Programme Expenditure
UK Statistics Family,Office for National Statistics,08/06/2023,Exp - Purchase Of Goods/Services - Contractors,INTEGRATED DATA STRATEGY AND DELIVERY,Malikshaw Interim & Executive,268917," 13,751.52 ",Information Management Services,SME,Programme Expenditure
UK Statistics Family,Office for National Statistics,08/06/2023,Exp - Purchase Of Goods/Services - Contractors,Data Architecture,Malikshaw Interim & Executive,268917," 17,472.00 ",Information Management Services,SME,Programme Expenditure
UK Statistics Family,Office for National Statistics,08/06/2023,Exp - Purchase Of Goods/Services - Contractors,CDIO UNGP,Malikshaw Interim & Executive,268917," 12,204.00 ",Information Management Services,SME,Programme Expenditure
UK Statistics Family,Office for National Statistics,08/06/2023,Hosting,CLOUD ARCHITECTURE,CTS (Cloud Technology Solutions Ltd),268918," 184,695.47 ",Information Management Services,Large,Programme Expenditure
UK Statistics Family,Office for National Statistics,08/06/2023,Hosting,CLOUD ARCHITECTURE,Amazon Web Services Inc,268919," 331,319.13 ",Information Management Services,Large,Programme Expenditure
UK Statistics Family,Office for National Statistics,08/06/2023,Exp - Purchase Of Goods/Services - Incentive Payments,Covid Infection Survey,Sodexo Motivation Solutions U.K. ltd,268920," 35,350.88 ",Survey Response Incentive Vouchers,Large,Programme Expenditure
UK Statistics Family,Office for National Statistics,08/06/2023,Exp - Purchase Of Goods/Services - Incentive Payments,Interviewer Support,Sodexo Motivation Solutions U.K. ltd,268920, 516.93 ,Survey Response Incentive Vouchers,Large,Programme Expenditure
UK Statistics Family,Office for National Statistics,08/06/2023,Exp - Purchase Of Goods/Services - Incentive Payments,Interviewer Support,Sodexo Motivation Solutions U.K. ltd,268920, 621.78 ,Survey Response Incentive Vouchers,Large,Programme Expenditure
UK Statistics Family,Office for National Statistics,08/06/2023,Exp - Purchase Of Goods/Services - Incentive Payments,Interviewer Support,Sodexo Motivation Solutions U.K. ltd,268920, 88.80 ,Survey Response Incentive Vouchers,Large,Programme Expenditure
UK Statistics Family,Office for National Statistics,08/06/2023,Exp - Purchase Of Goods/Services - Incentive Payments,Interviewer Support,Sodexo Motivation Solutions U.K. ltd,268920," 22,054.28 ",Survey Response Incentive Vouchers,Large,Programme Expenditure
UK Statistics Family,Office for National Statistics,08/06/2023,Exp - Purchase Of Goods/Services - Incentive Payments,Interviewer Support,Sodexo Motivation Solutions U.K. ltd,268920, 288.60 ,Survey Response Incentive Vouchers,Large,Programme Expenditure
UK Statistics Family,Office for National Statistics,08/06/2023,Exp - Purchase Of Goods/Services - Incentive Payments,Survey Management,Sodexo Motivation Solutions U.K. ltd,268920, 40.85 ,Survey Response Incentive Vouchers,Large,Programme Expenditure
UK Statistics Family,Office for National Statistics,08/06/2023,Exp - Purchase Of Goods/Services - Contractors,Testing,Parity Resources Limited,268922," 2,699.22 ",Information Management Services,Large,Programme Expenditure
UK Statistics Family,Office for National Statistics,08/06/2023,Exp - Purchase Of Goods/Services - Contractors,BUSINESS STRATEGY PERFORMANCE AND PMO,Parity Resources Limited,268922," 5,100.00 ",Information Management Services,Large,Programme Expenditure
UK Statistics Family,Office for National Statistics,08/06/2023,Exp - Purchase Of Goods/Services - Contractors,Data Architecture,Parity Resources Limited,268922," 4,810.50 ",Information Management Services,Large,Programme Expenditure
UK Statistics Family,Office for National Statistics,08/06/2023,Exp - Purchase Of Goods/Services - Contractors,CDIO UNGP,Parity Resources Limited,268922," 4,600.50 ",Information Management Services,Large,Programme Expenditure
UK Statistics Family,Office for National Statistics,08/06/2023,Exp - Purchase Of Goods/Services - Contractors,Strategy And Architecture,Parity Resources Limited,268922," 4,210.50 ",Information Management Services,Large,Programme Expenditure
UK Statistics Family,Office for National Statistics,08/06/2023,Exp - Purchase Of Goods/Services - Contractors,IT Applications,Parity Resources Limited,268922," 3,120.00 ",Information Management Services,Large,Programme Expenditure
UK Statistics Family,Office for National Statistics,08/06/2023,Exp - Purchase Of Goods/Services - Contractors,IT Operations,Parity Resources Limited,268922," 8,350.50 ",Information Management Services,Large,Programme Expenditure
UK Statistics Family,Office for National Statistics,08/06/2023,Hosting,CDIO UNGP,Google Cloud EMEA Limited,268924," 1,128,001.21 ",Information Management Services,Large,Programme Expenditure
UK Statistics Family,Office for National Statistics,09/06/2023,EXP - HOME WORKING FURNITURE,Business Analysis & Soc Survey,Gresham Office Furniture Limited,269026," 26,251.92 ",Office Furniture,SME,Programme Expenditure
UK Statistics Family,Office for National Statistics,12/06/2023,Hosting,IT Operations,Crown Hosting Data Centres Limited,269130," 38,885.17 ",Information Management Services,SME,Programme Expenditure
UK Statistics Family,Office for National Statistics,12/06/2023,Exp - Purchase Of Goods/Services - IT Contractual Services,CLOUD ARCHITECTURE,Ibm United Kingdom Ltd,269133," 77,568.00 ",Information Management Services,Large,Programme Expenditure
UK Statistics Family,Office for National Statistics,12/06/2023,Exp - Purchase Of Goods/Services - IT Contractual Services,Strategy And Architecture,Ibm United Kingdom Ltd,269133," 184,811.95 ",Information Management Services,Large,Programme Expenditure
UK Statistics Family,Office for National Statistics,12/06/2023,Surveys,Interview Management IPS,Heathrow Airport,269136, 57.25 ,Rental Charges,Large,Programme Expenditure
UK Statistics Family,Office for National Statistics,12/06/2023,Accommodation & Building Management,Interview Management IPS,Heathrow Airport,269136," 27,583.40 ",Rental Charges,Large,Programme Expenditure
UK Statistics Family,Office for National Statistics,13/06/2023,Exp - Purchase Of Goods/Services - Accommodation & Bldng Management - Miscellaneous Minor Works,Property Services,Vinci Construction UK Limited,269356," 66,726.71 ",Facilities Mangement Services,Large,Programme Expenditure
UK Statistics Family,Office for National Statistics,13/06/2023,Capital Major Works >25K,Property Newport,Vinci Construction UK Limited,269356,"-65,239.20 ",Facilities Mangement Services,Large,Programme Expenditure
UK Statistics Family,Office for National Statistics,13/06/2023,FM Contract Payments,Vinci Payments,Vinci Construction UK Limited,269356," 281,701.51 ",Facilities Mangement Services,Large,Programme Expenditure
UK Statistics Family,Office for National Statistics,13/06/2023,Exp - Short-Term Contract & Agency Staff - Full Cost,SUB-NATIONAL STATISTICS AND ANALYSIS,Concept Information Technology Ltd T/A Concept Resourcing,269357," 3,796.20 ",Information Management Services,Large,Programme Expenditure
UK Statistics Family,Office for National Statistics,13/06/2023,Exp - Short-Term Contract & Agency Staff - Full Cost,Best Practice And Impact,Concept Information Technology Ltd T/A Concept Resourcing,269357," 3,799.99 ",Information Management Services,Large,Programme Expenditure
UK Statistics Family,Office for National Statistics,13/06/2023,Exp - Short-Term Contract & Agency Staff - Full Cost,Public Sector And Households,Concept Information Technology Ltd T/A Concept Resourcing,269357," 3,672.91 ",Information Management Services,Large,Programme Expenditure
UK Statistics Family,Office for National Statistics,13/06/2023,Exp - Short-Term Contract & Agency Staff - Full Cost,Public Sector And Households,Concept Information Technology Ltd T/A Concept Resourcing,269357," 2,741.70 ",Information Management Services,Large,Programme Expenditure
UK Statistics Family,Office for National Statistics,13/06/2023,Exp - Short-Term Contract & Agency Staff - Full Cost,Public Sector And Households,Concept Information Technology Ltd T/A Concept Resourcing,269357," 3,796.20 ",Information Management Services,Large,Programme Expenditure
UK Statistics Family,Office for National Statistics,13/06/2023,Exp - Short-Term Contract & Agency Staff - Full Cost,Corporations,Concept Information Technology Ltd T/A Concept Resourcing,269357," 7,570.08 ",Information Management Services,Large,Programme Expenditure
UK Statistics Family,Office for National Statistics,13/06/2023,Travel And Subsistence,Corporate Centre,Corporate Travel Management ,269361," 63,601.62 ",Travel and Accommodation,SME,Programme Expenditure
UK Statistics Family,Office for National Statistics,13/06/2023,Accommodation & Building Management,Interview Management IPS,Heathrow Airport,269363," 28,909.54 ",Rental Charges,Large,Programme Expenditure
UK Statistics Family,Office for National Statistics,13/06/2023,Exp - Purchase Of Goods/Services - Contractors,Testing,Certes Computing Ltd,269366," 10,616.20 ",Information Management Services,SME,Programme Expenditure
UK Statistics Family,Office for National Statistics,13/06/2023,Exp - Purchase Of Goods/Services - Contractors,Security Advisory,Certes Computing Ltd,269366," 33,253.22 ",Information Management Services,SME,Programme Expenditure
UK Statistics Family,Office for National Statistics,13/06/2023,Exp - Purchase Of Goods/Services - Contractors,CLOUD ARCHITECTURE,Certes Computing Ltd,269366," 4,890.18 ",Information Management Services,SME,Programme Expenditure
UK Statistics Family,Office for National Statistics,13/06/2023,Exp - Purchase Of Goods/Services - Contractors,DATA ENGINEERING OPERATIONS AND DELIVERY,Certes Computing Ltd,269366," 17,421.60 ",Information Management Services,SME,Programme Expenditure
UK Statistics Family,Office for National Statistics,13/06/2023,End User Software And Hardware,IT Operations,Bytes Software Services Ltd,269369," 45,931.28 ",Software Licenses,Large,Programme Expenditure
UK Statistics Family,Office for National Statistics,13/06/2023,Hospitality,Property Services,BaxterStorey,269374," 46,512.45 ",Catering Services,Large,Programme Expenditure
UK Statistics Family,Office for National Statistics,13/06/2023,Exp - Short-Term Contract & Agency Staff - Full Cost,Finance,Malikshaw Interim & Executive,269376," 2,986.28 ",Information Management Services,SME,Programme Expenditure
UK Statistics Family,Office for National Statistics,13/06/2023,Exp - Short-Term Contract & Agency Staff - Full Cost,Census & Soc Methodology Dd,Malikshaw Interim & Executive,269376," 4,466.64 ",Information Management Services,SME,Programme Expenditure
UK Statistics Family,Office for National Statistics,13/06/2023,Exp - Purchase Of Goods/Services - Contractors,DATA ENGINEERING OPERATIONS AND DELIVERY,Malikshaw Interim & Executive,269376," 18,072.00 ",Information Management Services,SME,Programme Expenditure
UK Statistics Family,Office for National Statistics,13/06/2023,Specialist User Software And Hardware,CDIO UNGP,CTS (Cloud Technology Solutions Ltd),269377," 37,800.00 ",Information Management Services,Large,Programme Expenditure
UK Statistics Family,Office for National Statistics,13/06/2023,Exp - Purchase Of Goods And Services Consultants,Analysis Microdata And Engagement,Parity Resources Limited,269382, 378.46 ,Information Management Services,Large,Programme Expenditure
UK Statistics Family,Office for National Statistics,13/06/2023,Exp - Short-Term Contract & Agency Staff - Full Cost,Finance,Parity Resources Limited,269382," 1,509.60 ",Information Management Services,Large,Programme Expenditure
UK Statistics Family,Office for National Statistics,13/06/2023,Exp - Short-Term Contract & Agency Staff - Full Cost,Recruitment ,Parity Resources Limited,269382," 2,733.60 ",Information Management Services,Large,Programme Expenditure
UK Statistics Family,Office for National Statistics,13/06/2023,Exp - Purchase Of Goods/Services - Contractors,Security Advisory,Parity Resources Limited,269382," 63,633.30 ",Information Management Services,Large,Programme Expenditure
UK Statistics Family,Office for National Statistics,13/06/2023,Exp - Short-Term Contract & Agency Staff - Full Cost,Recruitment ,Talent International,269383," 6,574.71 ",Information Management Services,SME,Programme Expenditure
UK Statistics Family,Office for National Statistics,13/06/2023,Exp - Purchase Of Goods/Services - Contractors,Security Advisory,Talent International,269383," 27,899.63 ",Information Management Services,SME,Programme Expenditure
UK Statistics Family,Office for National Statistics,14/06/2023,Business Rates,Property Christchurch,"Bournemouth, Christchurch and Poole Council",269540," 162,086.60 ",Business Property Rates,SME,Programme Expenditure
UK Statistics Family,Office for National Statistics,14/06/2023,Exp - Purchase Of Goods/Services - Contractors,Business Architecture Transformation And Statistical Strategy,Malikshaw Interim & Executive,269542," 15,600.00 ",Information Management Services,SME,Programme Expenditure
UK Statistics Family,Office for National Statistics,14/06/2023,Exp - Purchase Of Goods/Services - Contractors,CDIO UNGP,Malikshaw Interim & Executive,269542," 15,600.00 ",Information Management Services,SME,Programme Expenditure
UK Statistics Family,Office for National Statistics,14/06/2023,Exp - Purchase Of Goods/Services - IT Contractual Services,IT Applications,Diegesis Limited,269544," 189,342.00 ",Information Management Services,Large,Programme Expenditure
UK Statistics Family,Office for National Statistics,14/06/2023,EXP - PURCHASE OF GOODS/SERVICES - DATA ACQUISITION,Corporations,Orient Capital,269549," 71,610.00 ",Data Acquisition,SME,Programme Expenditure
UK Statistics Family,Office for National Statistics,14/06/2023,Exp - Purchase Of Goods/Services - IT Contractual Services,Digital Delivery,ANDigital Limited,269552," 41,796.00 ",Information Management Services,large,Programme Expenditure
UK Statistics Family,Office for National Statistics,15/06/2023,Exp - Purchase Of Goods/Services - Incentive Payments,Covid Infection Survey,Sodexo Motivation Solutions U.K. ltd,269651," 24,889.78 ",Survey Response Incentive Vouchers,Large,Programme Expenditure
UK Statistics Family,Office for National Statistics,15/06/2023,Exp - Purchase Of Goods/Services - Incentive Payments,Interviewer Support,Sodexo Motivation Solutions U.K. ltd,269651, 454.01 ,Survey Response Incentive Vouchers,Large,Programme Expenditure
UK Statistics Family,Office for National Statistics,15/06/2023,Exp - Purchase Of Goods/Services - Incentive Payments,Interviewer Support,Sodexo Motivation Solutions U.K. ltd,269651, 384.92 ,Survey Response Incentive Vouchers,Large,Programme Expenditure
UK Statistics Family,Office for National Statistics,15/06/2023,Exp - Purchase Of Goods/Services - Incentive Payments,Interviewer Support,Sodexo Motivation Solutions U.K. ltd,269651, 103.60 ,Survey Response Incentive Vouchers,Large,Programme Expenditure
UK Statistics Family,Office for National Statistics,15/06/2023,Exp - Purchase Of Goods/Services - Incentive Payments,Interviewer Support,Sodexo Motivation Solutions U.K. ltd,269651," 22,807.74 ",Survey Response Incentive Vouchers,Large,Programme Expenditure
UK Statistics Family,Office for National Statistics,15/06/2023,Exp - Purchase Of Goods/Services - Incentive Payments,Survey Management,Sodexo Motivation Solutions U.K. ltd,269651, 128.31 ,Survey Response Incentive Vouchers,Large,Programme Expenditure
UK Statistics Family,Office for National Statistics,16/06/2023,Postage,Survey Processing Centre,DHL Parcel Ltd,269741," 43,340.28 ",Postage,Large,Programme Expenditure
UK Statistics Family,Office for National Statistics,16/06/2023,Exp - Purchase Of Goods/Services - IT Contractual Services,CDIO UNGP,CTS (Cloud Technology Solutions Ltd),269744," 111,428.80 ",Information Management Services,Large,Programme Expenditure
UK Statistics Family,Office for National Statistics,16/06/2023,Training & Development,Learning And Capability,Peppy Health Ltd,269749," 63,648.00 ",Software Licenses,Large,Programme Expenditure
UK Statistics Family,Office for National Statistics,19/06/2023,Exp - Purchase Of Goods/Services - IT Contractual Services,PARTNERSHIP DEVELOPMENT,CGI IT UK Limited,269863," 345,743.79 ",Information Management Services,Large,Programme Expenditure
UK Statistics Family,Office for National Statistics,19/06/2023,Travel And Subsistence,PARTNERSHIP DEVELOPMENT,CGI IT UK Limited,269863, 380.00 ,Information Management Services,Large,Programme Expenditure
UK Statistics Family,Office for National Statistics,21/06/2023,Exp - Purchase Of Goods/Services - IT Contractual Services,CDIO UNGP,CTS (Cloud Technology Solutions Ltd),270232," 111,428.80 ",Information Management Services,Large,Programme Expenditure
UK Statistics Family,Office for National Statistics,21/06/2023,Surveys,Crime Statistics,Kantar Public UK Ltd.,270233," 486,988.70 ",Statistical Services,SME,Programme Expenditure
UK Statistics Family,Office for National Statistics,21/06/2023,Telecoms,IT Operations,Cdw Limited,270237," 35,536.80 ",Information Management Services,Large,Programme Expenditure
UK Statistics Family,Office for National Statistics,21/06/2023,Telecoms,IT Operations,Bt Global Services,270240," 26,277.00 ",Telecommunications,Large,Programme Expenditure
UK Statistics Family,Office for National Statistics,22/06/2023,Travel And Subsistence,Corporate Centre,Corporate Travel Management ,270360," 33,139.50 ",Travel and Accommodation,SME,Programme Expenditure
UK Statistics Family,Office for National Statistics,22/06/2023,Surveys,Business Outputs And Developments,Iff Research,270367," 181,372.42 ",Statistical Services,Large,Programme Expenditure
UK Statistics Family,Office for National Statistics,22/06/2023,Exp - Purchase Of Goods And Services Consultants,Digital Media,Methods Business & Digital Technology Ltd,270369," 637,683.76 ",Information Management Services,Large,Programme Expenditure
UK Statistics Family,Office for National Statistics,22/06/2023,Exp - Purchase Of Goods And Services Consultants,Digital Media,Methods Business & Digital Technology Ltd,270369," 165,874.50 ",Information Management Services,Large,Programme Expenditure
UK Statistics Family,Office for National Statistics,22/06/2023,Exp - Purchase Of Goods/Services - IT Contractual Services,Digital Delivery,Armakuni Ltd,270371," 51,414.00 ",Information Management Services,SME,Programme Expenditure
UK Statistics Family,Office for National Statistics,22/06/2023,Prepayments - Titchfield Postage Meter,Postage,Pitney Bowes Ltd,270376, 615.14 ,Postage,Large,Programme Expenditure
UK Statistics Family,Office for National Statistics,22/06/2023,Postage,REPROGRAPHICS,Pitney Bowes Ltd,270376," 170,942.60 ",Postage,Large,Programme Expenditure
UK Statistics Family,Office for National Statistics,23/06/2023,Exp - Purchase Of Goods/Services - Incentive Payments,Interviewer Support,Sodexo Motivation Solutions U.K. ltd,270514," 36,210.81 ",Survey Response Incentive Vouchers,Large,Programme Expenditure
UK Statistics Family,Office for National Statistics,26/06/2023,Exp - Purchase Of Goods And Services Consultants,Planning And Info Governance,Ernst & Young LLP,270609," 97,020.00 ",Consultancy,Large,Programme Expenditure
UK Statistics Family,Office for National Statistics,26/06/2023,"ICT Outsourcing, Maintenance And Support",Interviewer Support,Totalmobile Ltd,270611," 17,640.00 ",Information Management Services,SME,Programme Expenditure
UK Statistics Family,Office for National Statistics,26/06/2023,"ICT Outsourcing, Maintenance And Support",Interviewer Support,Totalmobile Ltd,270611," 127,170.00 ",Information Management Services,SME,Programme Expenditure
UK Statistics Family,Office for National Statistics,26/06/2023,Surveys,Prices Division,Kantar Public UK Ltd.,270612," 42,391.80 ",Statistical Services,SME,Programme Expenditure
UK Statistics Family,Office for National Statistics,26/06/2023,EXP - PURCHASE OF GOODS/SERVICES - DATA ACQUISITION,Prices Division,Kantar Public UK Ltd.,270612," 185,899.00 ",Statistical Services,SME,Programme Expenditure
UK Statistics Family,Office for National Statistics,26/06/2023,Exp - Purchase Of Goods And Services Consultants,Digital Media,Methods Business & Digital Technology Ltd,270614," 137,567.26 ",Information Management Services,Large,Programme Expenditure
UK Statistics Family,Office for National Statistics,26/06/2023,IT Management And Change,Survey Processing Centre,Xerox UK Limited,270615," 25,523.16 ",Reprographic Equipment Rental,Large,Programme Expenditure
UK Statistics Family,Office for National Statistics,27/06/2023,Buildings Under Construction,Property Titchfield,Vinci Construction UK Limited,270853," 129,544.76 ",Facilities Mangement Services,Large,Programme Expenditure
UK Statistics Family,Office for National Statistics,27/06/2023,IT Management And Change,IT Operations,Stone Computers,270854," 78,600.00 ",Hardware Support,Large,Programme Expenditure
UK Statistics Family,Office for National Statistics,27/06/2023,Exp - Short-Term Contract & Agency Staff - Full Cost,Finance,Parity Resources Limited,270867," 1,509.60 ",Information Management Services,Large,Programme Expenditure
UK Statistics Family,Office for National Statistics,27/06/2023,Exp - Short-Term Contract & Agency Staff - Full Cost,Interviewer Management FiF,Parity Resources Limited,270867," 24,291.66 ",Information Management Services,Large,Programme Expenditure
UK Statistics Family,Office for National Statistics,27/06/2023,Exp - Purchase Of Goods/Services - Census Field Costs,Interviewer Management FiF,Parity Resources Limited,270867, 205.44 ,Information Management Services,Large,Programme Expenditure
UK Statistics Family,Office for National Statistics,27/06/2023,Exp - Short-Term Contract & Agency Staff - Full Cost,Interviewer Support,Parity Resources Limited,270867, 737.58 ,Information Management Services,Large,Programme Expenditure
UK Statistics Family,Office for National Statistics,07/06/2023,Stationery,Lodgecard,Royal Bank of Scotland,30004164," 1,355.26 ",Multiple Procurement Card Purchases  - Stationery ,Large,Programme Expenditure
UK Statistics Family,Office for National Statistics,07/06/2023,Other Goods And Services,GPC,Royal Bank of Scotland,30004164," 39,955.58 ",Multiple Procurement Card Purchases - other goods/services  ,Large,Programme Expenditure
UK Statistics Family,Office for National Statistics,07/06/2023,Travel And Subsistence,Car Hire,Royal Bank of Scotland,30004164," 18,622.62 ",Multiple Procurement Card Purchases - Vehicle Hire  ,Large,Programme Expenditure
UK Statistics Family,Office for National Statistics,09/06/2023,IT Management And Change,Epidemiology and Global Health Analysis,United Nations Foundation,30004169," 43,155.07 ",Information Management Services,SME,Programme Expenditure
UK Statistics Family,Office for National Statistics,19/06/2023,Electricity,Property Newport,Edf Energy,30004173," 32,039.18 ",Utility Costs,Large,Programme Expenditure
UK Statistics Family,Office for National Statistics,22/06/2023,Electricity,Property Titchfield,Edf Energy,30004175," 26,971.61 ",Utility Costs,Large,Programme Expenditure
UK Statistics Family,Office for National Statistics,26/06/2023,Exp - Purchase Of Goods And Services Consultants,Data Science Campus,United Nations Statistics Division,30004176," 59,168.40 ",Contribution towards the United Nations Global Platform (UNGP) work programme,Large,Programme Expenditure
UK Statistics Family,Office for National Statistics,30/06/2023,Specialist User Software And Hardware,CDIO UNGP,CTS (Cloud Technology Solutions Ltd),30004185," 37,800.00 ",Information Management Services,Large,Programme Expenditure
UK Statistics Family,Office for National Statistics,30/06/2023,Exp - Purchase Of Goods/Services - IT Contractual Services,DATA ENGINEERING OPERATIONS AND DELIVERY,CTS (Cloud Technology Solutions Ltd),30004185," 36,842.40 ",Information Management Services,Large,Programme Expenditure
UK Statistics Family,Office for National Statistics,30/06/2023,Exp - Purchase Of Goods/Services - Other ICT Costs Software,Researcher Support And Data Access ,ITS Computing Limited,30004186, 480.00 ,Information Management Services,Large,Programme Expenditure
UK Statistics Family,Office for National Statistics,30/06/2023,Hosting,IT Operations,ITS Computing Limited,30004186," 48,400.00 ",Information Management Services,Large,Programme Expenditure
UK Statistics Family,Office for National Statistics,30/06/2023,Exp - Purchase Of Goods/Services - Contractors,Data Capability,Parity Resources Limited,30004187," 21,340.75 ",Information Management Services,Large,Programme Expenditure
UK Statistics Family,Office for National Statistics,30/06/2023,Exp - Purchase Of Goods And Services Consultants,Policy Secretariat,Parity Resources Limited,30004187," 1,939.09 ",Information Management Services,Large,Programme Expenditure
UK Statistics Family,Office for National Statistics,30/06/2023,Exp - Purchase Of Goods/Services - Contractors,Data Architecture,Parity Resources Limited,30004187," 3,848.40 ",Information Management Services,Large,Programme Expenditure
UK Statistics Family,Office for National Statistics,30/06/2023,Exp - Purchase Of Goods/Services - Contractors,CDIO UNGP,Parity Resources Limited,30004187," 9,201.00 ",Information Management Services,Large,Programme Expenditure
UK Statistics Family,Office for National Statistics,30/06/2023,Exp - Purchase Of Goods/Services - Contractors,IT Applications,Parity Resources Limited,30004187," 3,900.00 ",Information Management Services,Large,Programme Expenditure
,,,,,,,"14,480,719.42",,,
